[Event "33rd Croatian Junior League 2024"]
[Site "Novalja"]
[Date "2024.04.04"]
[Round "4.7"]
[White "Marfat, Ivan"]
[Black "Sagovac, Kristijan"]
[Result "1/2-1/2"]
[ECO "A55"]
[WhiteElo "1903"]
[BlackElo "2030"]
[Annotator "RC"]
[PlyCount "82"]
[EventDate "2024.03.28"]
[EventType "team-tourn"]
[EventCountry "CRO"]
[SourceTitle "playchess.com"]
[Source "ChessBase"]
[SourceQuality "1"]
[TimeControl "5400+30"]

1. e4 {[%emt 0:00:03]} c6 {[%emt 0:00:06]} 2. c4 {[%emt 0:00:49]} e5 {[%emt 0:01:41]} 3. Nf3 {[%emt 0:01:30]} d6 {[%emt 0:01:05]} 4. d4 {[%emt 0:00:29]} Qc7 {[%emt 0:09:13]} 5. Nc3 {[%emt 0:00:30]} Nf6 {[%emt 0:00:30]} 6. Be2 {[%emt 0:00:30]} Be7 {[%emt 0:00:30]} 7. h3 {[%emt 0:00:30]} Nbd7 8. Be3 {[%emt 0:08:54]} O-O {[%emt 0:03:12]} 9. O-O {[%emt 0:01:03]} Re8 {[%emt 0:03:11]} 10. Qc2 {[%emt 0:08:06]} Nf8 {[%emt 0:00:55]} 11. Rad1 {[%emt 0:11:37]} Ng6 {[%emt 0:01:15]} 12. dxe5 {[%emt 0:04:44]} dxe5 {[%emt 0:00:58]} 13. c5 {[%emt 0:00:16]} Be6 {[%emt 0:05:51]} 14. Ng5 {[%emt 0:01:35]} Bd7 {[%emt 0:00:19]} 15. Bc4 {[%emt 0:00:32]} Rf8 {[%emt 0:01:24]} 16. Rd2 {[%emt 0:07:42]} h6 {[%emt 0:01:11]} 17. Nf3 {[%emt 0:00:04]} Nh5 {[%emt 0:11:13]} 18. Ne2 {[%emt 0:04:15]} Kh8 {[%emt 0:02:51]} 19. Rfd1 {[%emt 0:00:32]} Rad8 {[%emt 0:01:23]} 20. Qb3 {[%emt 0:12:36]} Be8 {[%emt 0:02:51]} 21. g4 {[%emt 0:07:19]} Rxd2 {[%emt 0:00:29]} 22. Rxd2 {[%emt 0:00:12]} Nhf4 {[%emt 0:01:00]} 23. Nxf4 {[%emt 0:01:14]} Nxf4 {[%emt 0:02:27]} 24. Kh2 {[%emt 0:01:11]} Kg8 {[%emt 0:04:32]} 25. Qc3 {[%emt 0:01:44]} Ng6 {[%emt 0:02:30]} 26. b4 {[%emt 0:02:38]} Bd7 {[%emt 0:03:18]} 27. Qb3 {[%emt 0:01:38]} Qc8 {[%emt 0:01:34]} 28. Qc3 {[%emt 0:02:32]} Bf6 {[%emt 0:07:32]} 29. Qd3 {[%emt 0:04:10]} Rd8 {[%emt 0:02:29]} 30. Qb3 {[%emt 0:00:17]} Rf8 {[%emt 0:01:23]} 31. Qd3 {[%emt 0:00:07]} Rd8 {[%emt 0:05:16]} 32. Qb3 {[%emt 0:00:07]} Be8 {[%emt 0:02:09]} 33. Qd1 {[%emt 0:00:34]} Rd7 {[%emt 0:03:15]} 34. Kg3 {[%emt 0:03:00]} Qd8 {[%emt 0:02:38]} 35. a4 {[%emt 0:02:07]} a6 {[%emt 0:00:51]} 36. Rxd7 {[%emt 0:00:44]} Bxd7 {[%emt 0:00:40]} 37. Qd6 {[%emt 0:00:24]} Be8 {[%emt 0:06:04]} 38. Qxd8 {[%emt 0:01:01]} Bxd8 {[%emt 0:00:08]} 39. h4 {[%emt 0:00:06]} Bc7 {[%emt 0:01:53]} 40. Bd2 {[%emt 0:01:03]} Kf8 {[%emt 0:02:56]} 41. Bc3 {[%emt 0:01:45]} f6 {[%emt 0:00:46]} 1/2-1/2

[Event "33rd Croatian Junior League 2024"]
[Site "Novalja"]
[Date "2024.04.04"]
[Round "4.8"]
[White "Martic, Filip"]
[Black "Mesic, Josip"]
[Result "1/2-1/2"]
[ECO "D32"]
[WhiteElo "1897"]
[BlackElo "1745"]
[Annotator "NA RC"]
[PlyCount "89"]
[EventDate "2024.03.28"]
[EventType "team-tourn"]
[EventCountry "CRO"]
[SourceTitle "playchess.com"]
[Source "ChessBase"]
[SourceQuality "1"]
[TimeControl "5400+30"]

1. d4 {[%emt 0:00:10]} e6 {[%emt 0:00:06]} 2. Nf3 {[%emt 0:00:05]} d5 {[%emt 0:00:06]} 3. c4 {[%emt 0:00:05]} c5 {[%emt 0:00:03]} 4. e3 {[%emt 0:00:49]} Nf6 {[%emt 0:01:48]} 5. Nc3 {[%emt 0:00:06]} Nc6 {[%emt 0:00:31]} 6. dxc5 {[%emt 0:08:41]} Bxc5 {[%emt 0:00:30]} 7. cxd5 {[%emt 0:00:30]} exd5 {[%emt 0:00:30]} 8. Be2 {[%emt 0:00:30]} O-O {[%emt 0:00:30]} 9. O-O {[%emt 0:00:30]} Bg4 {[%emt 0:00:30]} 10. a3 {[%emt 0:00:30]} a6 {[%emt 0:00:30]} 11. b4 {[%emt 0:00:30]} Ba7 {[%emt 0:00:30]} 12. Bb2 Qd7 {[%emt 0:00:30]} 13. Qd2 {[%emt 0:08:47]} Rfd8 $11 {[%emt 0:09:20]} 14. Rfd1 {[%emt 0:03:04]} Bxf3 {[%emt 0:00:30]} 15. Bxf3 {[%emt 0:00:30]} d4 {[%emt 0:00:30]} 16. Bxc6 Qxc6 {[%emt 0:00:30]} 17. exd4 {[%emt 0:01:00]} Rxd4 {[%emt 0:00:24]} 18. Qe2 {[%emt 0:01:04]} Re8 {[%emt 0:03:37]} 19. Qf3 {[%emt 0:01:24]} Qxf3 {[%emt 0:01:00]} 20. gxf3 {[%emt 0:00:01]} Rf4 {[%emt 0:06:53]} 21. Kg2 {[%emt 0:01:38]} h6 {[%emt 0:07:02]} 22. Re1 {[%emt 0:05:20]} Kf8 {[%emt 0:01:39]} 23. Rxe8+ {[%emt 0:01:52]} Kxe8 {[%emt 0:00:10]} 24. Re1+ {[%emt 0:00:04]} Kd7 {[%emt 0:01:18]} 25. Ne4 {[%emt 0:01:37]} Nxe4 {[%emt 0:01:15]} 26. Rxe4 {[%emt 0:00:01]} Rxe4 {[%emt 0:00:33]} 27. fxe4 {[%emt 0:00:01]} g6 {[%emt 0:00:09]} 28. f4 {[%emt 0:00:17]} Ke6 {[%emt 0:00:30]} 29. Kf3 {[%emt 0:00:11]} h5 {[%emt 0:01:22]} 30. h3 {[%emt 0:02:29]} b5 {[%emt 0:00:14]} 31. Bc3 {[%emt 0:01:14]} Bb6 {[%emt 0:00:39]} 32. Bb2 {[%emt 0:01:17]} Bd8 {[%emt 0:00:40]} 33. Kg3 {[%emt 0:00:46]} Be7 {[%emt 0:00:21]} 34. Bc3 {[%emt 0:00:08]} Kd7 {[%emt 0:02:17]} 35. Kf3 {[%emt 0:03:40]} Kc6 {[%emt 0:03:57]} 36. Ke3 {[%emt 0:00:20]} a5 {[%emt 0:18:18]} 37. Kd4 {[%emt 0:04:49]} a4 {[%emt 0:00:48]} 38. Be1 {[%emt 0:00:58]} Bf6+ {[%emt 0:00:48]} 39. e5 {[%emt 0:00:01]} Bd8 {[%emt 0:00:35]} 40. Ke4 {[%emt 0:00:11]} Bb6 {[%emt 0:01:56]} 41. Bd2 {[%emt 0:01:47]} Bg1 {[%emt 0:01:52]} 42. Be1 {[%emt 0:00:22]} Kd7 {[%emt 0:01:15]} 43. Bd2 {[%emt 0:00:28]} Ke6 {[%emt 0:00:28]} 44. Bc3 {[%emt 0:00:33]} Bf2 {[%emt 0:01:51]} 45. Kf3 {[%emt 0:00:20]} 1/2-1/2

[Event "33rd Croatian Junior League 2024"]
[Site "Novalja"]
[Date "2024.04.04"]
[Round "4.9"]
[White "Kovac, Petar"]
[Black "Denic, Marin"]
[Result "1-0"]
[ECO "E11"]
[WhiteElo "2173"]
[BlackElo "2045"]
[Annotator "RC"]
[PlyCount "69"]
[EventDate "2024.03.28"]
[EventType "team-tourn"]
[EventCountry "CRO"]
[SourceTitle "playchess.com"]
[Source "ChessBase"]
[SourceQuality "1"]
[TimeControl "5400+30"]

1. d4 {[%emt 0:00:04]} Nf6 {[%emt 0:00:07]} 2. c4 {[%emt 0:00:08]} e6 {[%emt 0:00:06]} 3. Nf3 {[%emt 0:00:11]} d5 {[%emt 0:00:09]} 4. g3 {[%emt 0:00:07]} Bb4+ {[%emt 0:00:08]} 5. Bd2 {[%emt 0:00:05]} Be7 {[%emt 0:00:07]} 6. Bg2 {[%emt 0:00:08]} c6 {[%emt 0:00:15]} 7. Qc2 {[%emt 0:00:12]} b6 {[%emt 0:00:28]} 8. O-O {[%emt 0:01:45]} Bb7 {[%emt 0:00:13]} 9. Bf4 {[%emt 0:09:13]} Nbd7 {[%emt 0:00:18]} 10. Rd1 {[%emt 0:02:24]} Rc8 {[%emt 0:00:22]} 11. Nc3 {[%emt 0:02:19]} dxc4 {[%emt 0:08:01]} 12. Nd2 {[%emt 0:00:32]} Nd5 {[%emt 0:00:07]} 13. Nxc4 {[%emt 0:00:16]} Nxf4 {[%emt 0:00:10]} 14. gxf4 {[%emt 0:00:04]} O-O {[%emt 0:00:24]} 15. Rac1 {[%emt 0:07:00]} Nf6 {[%emt 0:04:01]} 16. e3 {[%emt 0:04:08]} Nd5 {[%emt 0:07:58]} 17. Ne5 {[%emt 0:05:52]} f6 {[%emt 0:23:28]} 18. Nd3 {[%emt 0:05:51]} Qe8 {[%emt 0:07:08]} 19. Qb3 {[%emt 0:06:44]} Bd6 {[%emt 0:03:52]} 20. Ne4 {[%emt 0:16:17]} Bb8 {[%emt 0:01:36]} 21. Ng3 {[%emt 0:17:48]} h5 {[%emt 0:18:39]} 22. Ne2 {[%emt 0:04:09]} g5 {[%emt 0:08:40]} 23. Kh1 {[%emt 0:03:31]} h4 {[%emt 0:02:28]} 24. Bf3 {[%emt 0:01:51]} Kh8 {[%emt 0:06:21]} 25. Rg1 {[%emt 0:02:10]} Qe7 {[%emt 0:01:20]} 26. Rg4 {[%emt 0:03:00]} e5 {[%emt 0:03:44]} 27. dxe5 {[%emt 0:00:46]} Qd7 {[%emt 0:02:15]} 28. e4 {[%emt 0:04:00]} c5 {[%emt 0:01:04]} 29. Nxc5 {[%emt 0:02:28]} bxc5 {[%emt 0:00:33]} 30. exd5 {[%emt 0:00:05]} c4 {[%emt 0:00:27]} 31. Qd1 {[%emt 0:00:30]} Rc5 {[%emt 0:00:46]} 32. Nc3 {[%emt 0:00:40]} Qf5 {[%emt 0:00:42]} 33. Be4 {[%emt 0:00:40]} Qd7 {[%emt 0:00:26]} 34. Rxh4+ {[%emt 0:00:29]} Kg8 {[%emt 0:00:28]} 35. Qh5 {[%emt 0:00:40]} 1-0

[Event "33rd Croatian Junior League 2024"]
[Site "Novalja"]
[Date "2024.04.04"]
[Round "4.10"]
[White "Mocic, Ivano"]
[Black "Konjevic, Nikola"]
[Result "1/2-1/2"]
[ECO "D02"]
[WhiteElo "2011"]
[BlackElo "2056"]
[Annotator "RC"]
[PlyCount "127"]
[EventDate "2024.03.28"]
[EventType "team-tourn"]
[EventCountry "CRO"]
[SourceTitle "playchess.com"]
[Source "ChessBase"]
[SourceQuality "1"]
[TimeControl "5400+30"]

1. d4 {[%emt 0:00:02]} Nf6 {[%emt 0:00:08]} 2. Nf3 {[%emt 0:00:07]} d5 {[%emt 0:00:08]} 3. Bf4 {[%emt 0:00:05]} c5 {[%emt 0:00:14]} 4. e3 {[%emt 0:00:58]} e6 {[%emt 0:00:06]} 5. Nbd2 {[%emt 0:03:18]} Bd6 {[%emt 0:00:44]} 6. dxc5 {[%emt 0:00:26]} Bxc5 {[%emt 0:01:47]} 7. Bd3 {[%emt 0:00:12]} O-O {[%emt 0:10:31]} 8. O-O {[%emt 0:03:36]} Nbd7 {[%emt 0:19:19]} 9. c4 {[%emt 0:09:40]} b6 {[%emt 0:11:06]} 10. Qe2 {[%emt 0:10:04]} Bb7 {[%emt 0:07:00]} 11. Rac1 {[%emt 0:09:42]} Re8 {[%emt 0:05:44]} 12. Ne5 {[%emt 0:08:15]} Nxe5 {[%emt 0:02:48]} 13. Bxe5 {[%emt 0:00:14]} Bd6 {[%emt 0:00:29]} 14. Bxd6 {[%emt 0:05:05]} Qxd6 {[%emt 0:00:02]} 15. e4 {[%emt 0:04:46]} dxe4 {[%emt 0:01:25]} 16. Nxe4 {[%emt 0:00:23]} Nxe4 {[%emt 0:00:55]} 17. Bxe4 {[%emt 0:00:08]} Bxe4 {[%emt 0:00:07]} 18. Qxe4 {[%emt 0:00:05]} Rad8 {[%emt 0:03:53]} 19. Rc2 {[%emt 0:10:31]} Re7 {[%emt 0:04:49]} 20. h3 {[%emt 0:00:46]} Red7 {[%emt 0:00:17]} 21. Rfc1 {[%emt 0:01:34]} Qc5 {[%emt 0:02:55]} 22. Qe1 {[%emt 0:06:51]} a5 {[%emt 0:01:47]} 23. b3 {[%emt 0:03:01]} Rd3 {[%emt 0:12:06]} 24. Rc3 {[%emt 0:03:48]} Rd2 {[%emt 0:01:02]} 25. R3c2 {[%emt 0:03:08]} R2d3 {[%emt 0:00:30]} 26. Rc3 {[%emt 0:00:11]} Rd2 {[%emt 0:00:32]} 27. R3c2 {[%emt 0:00:07]} Rxc2 {[%emt 0:01:58]} 28. Rxc2 {[%emt 0:00:09]} Rd4 {[%emt 0:00:28]} 29. Rc1 {[%emt 0:07:00]} g6 {[%emt 0:04:02]} 30. Qc3 {[%emt 0:02:41]} e5 {[%emt 0:01:52]} 31. Qb2 {[%emt 0:02:31]} Qd6 {[%emt 0:01:41]} 32. Qc3 {[%emt 0:03:21]} Rd3 {[%emt 0:00:38]} 33. Qe1 {[%emt 0:00:55]} Rd2 {[%emt 0:01:38]} 34. a3 {[%emt 0:02:47]} Qd4 {[%emt 0:03:46]} 35. b4 {[%emt 0:00:48]} axb4 {[%emt 0:00:53]} 36. axb4 {[%emt 0:00:05]} f6 {[%emt 0:00:37]} 37. c5 {[%emt 0:00:32]} bxc5 {[%emt 0:00:20]} 38. bxc5 {[%emt 0:00:10]} Ra2 {[%emt 0:00:41]} 39. c6 {[%emt 0:00:37]} Ra8 {[%emt 0:00:06]} 40. c7 {[%emt 0:00:17]} Rc8 {[%emt 0:00:03]} 41. Rd1 {[%emt 0:00:12]} Qb6 {[%emt 0:00:18]} 42. Rd7 {[%emt 0:01:01]} Rxc7 {[%emt 0:00:16]} 43. Qd1 {[%emt 0:01:03]} Rxd7 {[%emt 0:00:38]} 44. Qxd7 {[%emt 0:00:05]} Qb1+ {[%emt 0:00:28]} 45. Kh2 {[%emt 0:00:05]} Qb3 {[%emt 0:00:20]} 46. Qd8+ {[%emt 0:01:12]} Kg7 {[%emt 0:00:03]} 47. h4 {[%emt 0:00:42]} h5 {[%emt 0:01:42]} 48. f4 {[%emt 0:00:36]} exf4 {[%emt 0:00:53]} 49. Qc7+ {[%emt 0:00:06]} Qf7 {[%emt 0:00:06]} 50. Qxf4 {[%emt 0:00:05]} Qe7 {[%emt 0:00:14]} 51. Qd2 {[%emt 0:00:33]} Qc7+ {[%emt 0:00:49]} 52. g3 {[%emt 0:00:15]} Qa7 {[%emt 0:00:40]} 53. Kg2 {[%emt 0:00:30]} Qe7 {[%emt 0:00:41]} 54. Kh2 {[%emt 0:00:29]} Qe6 {[%emt 0:00:40]} 55. Qc2 {[%emt 0:00:25]} Qd7 {[%emt 0:00:30]} 56. Qe2 {[%emt 0:00:40]} Qd6 {[%emt 0:00:22]} 57. Qb2 {[%emt 0:01:16]} Qe5 {[%emt 0:00:38]} 58. Qd2 {[%emt 0:00:37]} Qc5 {[%emt 0:00:31]} 59. Qd7+ {[%emt 0:00:09]} Kh6 {[%emt 0:00:11]} 60. Qd8 {[%emt 0:00:54]} Qf2+ {[%emt 0:00:46]} 61. Kh1 {[%emt 0:00:14]} g5 {[%emt 0:00:27]} 62. hxg5+ {[%emt 0:00:37]} Kxg5 {[%emt 0:00:26]} 63. Qg8+ {[%emt 0:00:24]} Kf5 {[%emt 0:00:15]} 64. Qg4+ {[%emt 0:01:24]} 1/2-1/2

[Event "33rd Croatian Junior League 2024"]
[Site "Novalja"]
[Date "2024.04.04"]
[Round "4.11"]
[White "Car, Filip"]
[Black "Petricevic, Mateo"]
[Result "0-1"]
[ECO "D36"]
[WhiteElo "2106"]
[BlackElo "2036"]
[Annotator "RC"]
[PlyCount "106"]
[EventDate "2024.03.28"]
[EventType "team-tourn"]
[EventCountry "CRO"]
[SourceTitle "playchess.com"]
[Source "ChessBase"]
[SourceQuality "1"]
[TimeControl "5400+30"]

1. d4 {[%emt 0:00:02]} Nf6 {[%emt 0:02:16]} 2. c4 {[%emt 0:00:13]} e6 {[%emt 0:00:19]} 3. Nc3 {[%emt 0:03:44]} d5 {[%emt 0:00:15]} 4. cxd5 {[%emt 1:28:31]} exd5 {[%emt 1:29:40]} 5. Bg5 {[%emt 0:00:00]} c6 {[%emt 0:00:00]} 6. Qc2 {[%emt 0:00:00]} Bd6 {[%emt 0:00:00]} 7. e3 {[%emt 0:00:00]} O-O {[%emt 0:00:00]} 8. Bd3 {[%emt 0:00:00]} h6 {[%emt 0:00:00]} 9. Bh4 {[%emt 0:00:00]} Re8 {[%emt 0:00:00]} 10. Nge2 {[%emt 0:00:00]} a5 {[%emt 0:00:00]} 11. Rc1 {[%emt 0:00:00]} Nbd7 {[%emt 0:00:00]} 12. Bg3 {[%emt 0:00:00]} Nf8 {[%emt 0:00:00]} 13. Bxd6 {[%emt 0:00:00]} Qxd6 {[%emt 0:00:00]} 14. Ng3 {[%emt 0:00:00]} Ng4 {[%emt 0:00:00]} 15. Nce2 {[%emt 0:00:00]} Ne6 {[%emt 0:00:00]} 16. O-O {[%emt 0:00:00]} Ng5 {[%emt 0:00:00]} 17. Nf4 {[%emt 0:00:00]} Nf6 {[%emt 0:00:00]} 18. Qc5 {[%emt 0:00:00]} Qxc5 {[%emt 0:00:00]} 19. Rxc5 {[%emt 0:00:00]} Ne6 {[%emt 0:00:00]} 20. Nxe6 {[%emt 0:00:00]} Bxe6 {[%emt 0:00:00]} 21. Rb1 {[%emt 0:00:00]} Reb8 {[%emt 0:00:00]} 22. b3 {[%emt 0:00:00]} g6 {[%emt 0:00:08]} 23. a3 {[%emt 0:00:00]} Kf8 {[%emt 0:01:10]} 24. Ne2 {[%emt 0:00:00]} Ke7 {[%emt 0:00:30]} 25. Nf4 {[%emt 0:00:00]} g5 {[%emt 0:01:19]} 26. Nxe6 {[%emt 0:00:00]} fxe6 {[%emt 0:00:47]} 27. Kf1 {[%emt 0:00:00]} Kd6 {[%emt 0:00:36]} 28. Ke2 {[%emt 0:00:00]} e5 {[%emt 0:00:20]} 29. Bf5 {[%emt 0:01:38]} Re8 {[%emt 0:01:04]} 30. Kd3 {[%emt 0:01:08]} Ra7 {[%emt 0:02:23]} 31. Rcc1 {[%emt 0:00:56]} exd4 {[%emt 0:00:47]} 32. exd4 {[%emt 0:01:20]} b6 {[%emt 0:00:26]} 33. Re1 {[%emt 0:02:57]} Rae7 {[%emt 0:00:38]} 34. Re3 {[%emt 0:01:50]} Rxe3+ {[%emt 0:01:56]} 35. fxe3 {[%emt 0:00:01]} c5 {[%emt 0:00:53]} 36. Re1 {[%emt 0:01:38]} Rf8 {[%emt 0:01:25]} 37. dxc5+ {[%emt 0:02:50]} bxc5 {[%emt 0:00:02]} 38. g4 {[%emt 0:01:24]} Rb8 {[%emt 0:00:37]} 39. Kc3 {[%emt 0:00:39]} Ke5 {[%emt 0:00:10]} 40. h4 {[%emt 0:00:55]} Ne4+ {[%emt 0:00:34]} 41. Kc2 {[%emt 0:00:20]} Nd6 {[%emt 0:00:28]} 42. hxg5 {[%emt 0:00:48]} Nxf5 {[%emt 0:00:14]} 43. gxf5 {[%emt 0:00:01]} hxg5 {[%emt 0:00:01]} 44. Rh1 {[%emt 0:01:01]} Kxf5 {[%emt 0:00:26]} 45. Rh7 {[%emt 0:00:12]} g4 {[%emt 0:00:48]} 46. Rg7 {[%emt 0:00:02]} Rb6 {[%emt 0:00:13]} 47. Rd7 {[%emt 0:00:14]} Ke4 {[%emt 0:00:19]} 48. Rg7 {[%emt 0:00:52]} Kf3 {[%emt 0:00:08]} 49. Rg5 {[%emt 0:00:34]} g3 {[%emt 0:00:36]} 50. Rxd5 {[%emt 0:00:20]} Rg6 {[%emt 0:00:23]} 51. Kc3 {[%emt 0:01:05]} Rg4 {[%emt 0:00:21]} 52. e4 {[%emt 0:00:19]} Rxe4 {[%emt 0:01:23]} 53. Rg5 {[%emt 0:00:55]} g2 {[%emt 0:01:18]} 0-1

[Event "33rd Croatian Junior League 2024"]
[Site "Novalja"]
[Date "2024.04.04"]
[Round "4.12"]
[White "Kurtovic, Darko"]
[Black "Mandaric, Fran"]
[Result "1-0"]
[ECO "B41"]
[WhiteElo "1969"]
[BlackElo "1933"]
[Annotator "RC"]
[PlyCount "113"]
[EventDate "2024.03.28"]
[EventType "team-tourn"]
[EventCountry "CRO"]
[SourceTitle "playchess.com"]
[Source "ChessBase"]
[SourceQuality "1"]
[TimeControl "5400+30"]

1. e4 {[%emt 0:02:04]} c5 {[%emt 0:00:10]} 2. Nf3 {[%emt 0:00:24]} e6 {[%emt 0:00:09]} 3. d4 {[%emt 0:00:18]} cxd4 {[%emt 0:00:18]} 4. Nxd4 {[%emt 0:00:13]} a6 {[%emt 0:00:06]} 5. c4 {[%emt 0:00:39]} Bb4+ {[%emt 0:00:17]} 6. Bd2 {[%emt 0:00:31]} Qb6 {[%emt 0:11:08]} 7. Nb3 {[%emt 0:01:41]} Ne7 {[%emt 0:05:40]} 8. Nc3 {[%emt 0:00:45]} Ng6 {[%emt 0:01:17]} 9. a3 {[%emt 0:09:35]} Be7 {[%emt 0:10:50]} 10. Be3 {[%emt 0:01:11]} Qc6 {[%emt 0:05:15]} 11. Rc1 {[%emt 0:02:22]} d6 {[%emt 0:02:19]} 12. Be2 {[%emt 0:15:53]} O-O {[%emt 0:01:19]} 13. O-O {[%emt 0:01:45]} b6 {[%emt 0:00:25]} 14. f4 {[%emt 0:03:57]} Bb7 {[%emt 0:12:38]} 15. Nd4 {[%emt 0:01:03]} Qd7 {[%emt 0:03:31]} 16. f5 {[%emt 0:02:20]} Ne5 {[%emt 0:01:43]} 17. Bg4 {[%emt 0:03:21]} Nxc4 {[%emt 0:23:00]} 18. fxe6 {[%emt 0:11:15]} Nxe3 {[%emt 0:00:31]} 19. exd7 {[%emt 0:00:10]} Nxd1 {[%emt 0:00:16]} 20. Rfxd1 {[%emt 0:00:08]} Bg5 {[%emt 0:06:08]} 21. Rc2 {[%emt 0:04:10]} Rd8 {[%emt 0:04:49]} 22. Na4 {[%emt 0:12:06]} Bxe4 {[%emt 0:05:08]} 23. Rc7 {[%emt 0:01:07]} f5 {[%emt 0:01:15]} 24. Nxf5 {[%emt 0:02:35]} Nxd7 {[%emt 0:01:18]} 25. Nxd6 {[%emt 0:00:36]} Ne5 {[%emt 0:02:29]} 26. Nxe4 {[%emt 0:00:58]} Be3+ {[%emt 0:00:22]} 27. Kf1 {[%emt 0:01:07]} Nxg4 {[%emt 0:00:18]} 28. Rcd7 {[%emt 0:04:28]} Rxd7 {[%emt 0:01:06]} 29. Rxd7 {[%emt 0:00:01]} Nxh2+ {[%emt 0:00:37]} 30. Ke2 {[%emt 0:00:01]} Bg1 {[%emt 0:00:21]} 31. Rd1 {[%emt 0:00:53]} Re8 {[%emt 0:00:05]} 32. Nac3 {[%emt 0:00:20]} Bc5 {[%emt 0:00:18]} 33. Rd7 {[%emt 0:00:34]} Ng4 {[%emt 0:00:16]} 34. Kd2 {[%emt 0:00:23]} Ne5 {[%emt 0:00:25]} 35. Ra7 {[%emt 0:04:02]} Nc4+ {[%emt 0:00:05]} 36. Kc1 {[%emt 0:00:06]} Be3+ {[%emt 0:01:17]} 37. Kc2 {[%emt 0:00:02]} a5 {[%emt 0:01:07]} 38. Kd3 {[%emt 0:00:45]} b5 {[%emt 0:00:39]} 39. Rb7 {[%emt 0:00:06]} Bb6 {[%emt 0:00:22]} 40. Nxb5 {[%emt 0:00:50]} Nxb2+ {[%emt 0:00:21]} 41. Kc2 {[%emt 0:00:01]} Rxe4 {[%emt 0:00:22]} 42. Rb8+ {[%emt 0:00:04]} Kf7 {[%emt 0:00:55]} 43. Nd6+ {[%emt 0:00:01]} Ke7 {[%emt 0:00:23]} 44. Nxe4 {[%emt 0:00:16]} Na4 {[%emt 0:00:31]} 45. Rb7+ {[%emt 0:00:38]} Kf8 {[%emt 0:00:16]} 46. Kb3 {[%emt 0:01:05]} Nc5+ {[%emt 0:00:32]} 47. Nxc5 {[%emt 0:00:01]} Bxc5 {[%emt 0:00:10]} 48. Rb5 {[%emt 0:00:04]} Be3 {[%emt 0:00:37]} 49. Rf5+ {[%emt 0:00:32]} Kg8 {[%emt 0:00:11]} 50. Rxa5 {[%emt 0:00:04]} g5 {[%emt 0:00:08]} 51. Kc4 {[%emt 0:00:05]} Kf7 {[%emt 0:00:38]} 52. Ra6 {[%emt 0:00:09]} h5 {[%emt 0:00:20]} 53. Kd3 {[%emt 0:00:04]} Bf4 {[%emt 0:00:41]} 54. Ke4 {[%emt 0:00:06]} h4 {[%emt 0:00:22]} 55. Kf5 {[%emt 0:00:05]} Bc1 {[%emt 0:00:43]} 56. a4 {[%emt 0:00:08]} Ke7 {[%emt 0:00:09]} 57. Rg6 {[%emt 0:00:09]} 1-0

[Event "33rd Croatian Junior League 2024"]
[Site "Novalja"]
[Date "2024.04.04"]
[Round "5.1"]
[White "Novosel, Lovro"]
[Black "Troselj, Ivan"]
[Result "1/2-1/2"]
[ECO "E05"]
[WhiteElo "2348"]
[BlackElo "2072"]
[Annotator "RC"]
[PlyCount "76"]
[EventDate "2024.03.28"]
[EventType "team-tourn"]
[EventCountry "CRO"]
[SourceTitle "playchess.com"]
[Source "ChessBase"]
[SourceQuality "1"]
[TimeControl "5400+30"]

1. d4 {[%emt 0:00:04]} Nf6 {[%emt 0:00:06]} 2. c4 {[%emt 0:00:11]} e6 {[%emt 0:00:05]} 3. g3 {[%emt 0:00:43]} d5 {[%emt 0:00:06]} 4. Nf3 {[%emt 0:00:23]} Be7 {[%emt 0:00:05]} 5. Bg2 {[%emt 0:00:12]} O-O {[%emt 0:00:06]} 6. O-O {[%emt 0:00:15]} dxc4 {[%emt 0:00:04]} 7. Qc2 {[%emt 0:00:24]} a6 {[%emt 0:00:05]} 8. a4 {[%emt 0:00:10]} Bd7 {[%emt 0:00:04]} 9. Qxc4 {[%emt 0:00:25]} Bc6 {[%emt 0:00:05]} 10. Bg5 {[%emt 0:01:04]} Nbd7 {[%emt 0:06:04]} 11. Nc3 {[%emt 0:00:27]} h6 {[%emt 0:00:56]} 12. Bxf6 {[%emt 0:00:23]} Nxf6 {[%emt 0:00:02]} 13. Rfd1 {[%emt 0:03:28]} a5 {[%emt 0:01:36]} 14. Qd3 {[%emt 0:03:19]} Bb4 {[%emt 0:04:42]} 15. Bf1 {[%emt 0:12:07]} Bxf3 {[%emt 0:16:28]} 16. Qxf3 {[%emt 0:00:18]} c6 {[%emt 0:00:07]} 17. e3 {[%emt 0:06:55]} Qb6 {[%emt 0:04:04]} 18. Ne2 {[%emt 0:03:15]} Rad8 {[%emt 0:02:38]} 19. Nf4 {[%emt 0:01:14]} Bd6 {[%emt 0:01:04]} 20. Nd3 {[%emt 0:00:23]} Nd5 {[%emt 0:01:02]} 21. h4 {[%emt 0:04:06]} Rd7 {[%emt 0:03:16]} 22. Rd2 {[%emt 0:13:50]} Rfd8 {[%emt 0:02:53]} 23. Be2 {[%emt 0:03:03]} Nb4 {[%emt 0:02:14]} 24. Qe4 {[%emt 0:01:25]} c5 {[%emt 0:07:43]} 25. Nxb4 {[%emt 0:03:29]} Qxb4 {[%emt 0:02:50]} 26. Rad1 {[%emt 0:00:16]} Qxa4 {[%emt 0:07:57]} 27. Bd3 {[%emt 0:01:24]} cxd4 {[%emt 0:02:55]} 28. Bc2 {[%emt 0:03:01]} Qb5 {[%emt 0:04:19]} 29. Qh7+ {[%emt 0:00:21]} Kf8 {[%emt 0:00:05]} 30. Rxd4 {[%emt 0:00:11]} Be5 {[%emt 0:01:05]} 31. Ba4 {[%emt 0:12:47]} Rxd4 {[%emt 0:00:36]} 32. Rxd4 {[%emt 0:00:10]} Qb6 {[%emt 0:00:19]} 33. Rxd8+ {[%emt 0:00:50]} Qxd8 {[%emt 0:00:02]} 34. b3 {[%emt 0:00:15]} Qd1+ {[%emt 0:02:29]} 35. Kh2 {[%emt 0:00:53]} Qf1 {[%emt 0:02:32]} 36. Qc2 {[%emt 0:00:32]} b5 {[%emt 0:01:15]} 37. Qc8+ {[%emt 0:01:27]} Ke7 {[%emt 0:00:14]} 38. Qb7+ {[%emt 0:00:05]} Kf6 {[%emt 0:02:20]} 1/2-1/2

[Event "33rd Croatian Junior League 2024"]
[Site "Novalja"]
[Date "2024.04.04"]
[Round "5.2"]
[White "Damjanovic, Stjepan"]
[Black "Karlusic, Luka"]
[Result "1/2-1/2"]
[ECO "B10"]
[WhiteElo "2150"]
[BlackElo "2232"]
[Annotator "RC"]
[PlyCount "40"]
[EventDate "2024.03.28"]
[EventType "team-tourn"]
[EventCountry "CRO"]
[SourceTitle "playchess.com"]
[Source "ChessBase"]
[SourceQuality "1"]
[TimeControl "5400+30"]

1. e4 {[%emt 0:00:06]} c6 {[%emt 0:00:20]} 2. f4 {[%emt 0:03:48]} d5 {[%emt 0:00:58]} 3. e5 {[%emt 0:00:13]} c5 {[%emt 0:02:47]} 4. Nf3 {[%emt 0:01:04]} Nc6 {[%emt 0:00:52]} 5. c3 {[%emt 0:01:38]} Bg4 {[%emt 0:08:26]} 6. Na3 {[%emt 0:02:56]} e6 {[%emt 0:04:28]} 7. Nc2 {[%emt 0:02:02]} f6 {[%emt 0:07:50]} 8. d4 {[%emt 0:29:35]} Qb6 {[%emt 0:02:23]} 9. Be2 {[%emt 0:05:07]} Nh6 {[%emt 0:02:19]} 10. exf6 {[%emt 0:07:16]} gxf6 {[%emt 0:11:08]} 11. Be3 {[%emt 0:14:48]} Nf5 {[%emt 0:11:31]} 12. Bf2 {[%emt 0:00:06]} cxd4 {[%emt 0:09:41]} 13. Nfxd4 {[%emt 0:01:59]} Bxe2 {[%emt 0:13:22]} 14. Qxe2 {[%emt 0:00:06]} Ncxd4 {[%emt 0:00:57]} 15. Nxd4 {[%emt 0:00:21]} Ng7 {[%emt 0:03:43]} 16. Nf5 {[%emt 0:05:44]} Qc6 {[%emt 0:00:39]} 17. Nxg7+ {[%emt 0:00:28]} Bxg7 {[%emt 0:00:02]} 18. Qh5+ {[%emt 0:00:30]} Ke7 {[%emt 0:00:50]} 19. O-O {[%emt 0:00:57]} Rae8 {[%emt 0:03:03]} 20. Rad1 {[%emt 0:01:54]} Kd7 {[%emt 0:00:45]} 1/2-1/2